bitfinex-derivatives/quotes_ETHF0:USTF0_20250906
["timestamp","ask_amount","ask_price","bid_price","bid_amount"]
[1757124267598,0.7096,4320.8,4320.7,0.4249]
[1757124271499,0.7096,4320.8,4320.7,0.6236]
[1757124278710,0.7096,4320.8,4320.7,0.8626]
[1757124279909,0.7096,4320.8,4320.7,0.6236]
[1757124280109,0.7096,4320.8,4320.7,0.4249]
[1757124280403,0.7096,4320.8,4320.3,4.2550366]
[1757124280404,0.4152,4320.8,4320.3,4.2550366]
[1757124280606,0.2944,4320.4,4320.3,3.2078]
[1757124280811,0.7096,4320.4,4320.3,3.6327]
[1757124281311,0.7096,4320.4,4320.3,3.8314]
[1757124281511,0.7096,4320.4,4320.3,3.5994]
[1757124281712,0.7096,4320.4,4320.3,3.8314]
[1757124283112,0.7096,4320.4,4320.3,4.0704]
[1757124284213,0.7096,4320.4,4320.3,3.8314]
[1757124285105,1.30295285,4320.4,4320.3,3.4398]
[1757124285512,1.30293964,4320.4,4320.3,3.4398]
[1757124286110,0.7096,4320.3,4320.2,0.232]
[1757124286712,0.7096,4320.3,4320.2,0.4249]
[1757124287310,0.7096,4320.3,4319.8,0.239]
[1757124287511,0.8375,4320.0,4319.9,0.4249]
[1757124288217,1.220295,4320.0,4319.9,0.232]
[1757124288418,1.430695,4320.0,4319.9,0.232]
[1757124289108,1.136295,4320.0,4319.8,0.232]
[1757124289313,0.4073,4319.9,4319.7,0.232]
[1757124289507,0.7252,4319.8,4319.7,0.232]
[1757124290717,0.7252,4319.8,4319.7,0.214]
[1757124290917,0.7252,4319.8,4319.7,0.232]
[1757124291911,0.7252,4319.8,4319.3,1.0472366]
[1757124292117,0.1215,4319.5,4319.4,0.446]
[1757124292318,0.4073,4318.8,4318.7,0.6011614]
[1757124292528,0.7252,4318.8,4318.7,0.8403614]
[1757124292724,0.5293,4318.8,4318.7,0.8403614]
[1757124292923,0.5293,4318.8,4318.7,0.6562]
[1757124293421,0.3179,4318.8,4318.7,1.7034366]
[1757124294720,0.3179,4318.8,4318.7,1.9364366]
[1757124295424,0.3179,4318.8,4318.7,5.1442366]
[1757124296016,0.5293,4318.8,4318.7,4.097]
[1757124298523,0.7252,4318.8,4318.7,3.8578]
[1757124298923,0.5293,4318.8,4318.7,4.097]
[1757124299123,0.3179,4318.8,4318.7,4.097]
[1757124303530,3.2078,4319.6,4318.7,3.4408]
[1757124303830,0.59758977,4319.5,4318.7,3.4408]
[1757124304034,3.2078,4319.6,4318.7,3.4408]
[1757124304327,1.23880782,4319.4,4318.7,0.233]
[1757124304527,3.2078,4319.1,4318.7,0.233]
[1757124304725,0.59759509,4319.0,4318.7,0.233]
[1757124304922,3.2078,4319.1,4318.7,0.233]
[1757124305119,0.59763709,4319.0,4318.7,0.233]
[1757124305323,3.2078,4319.1,4318.7,0.233]
[1757124305526,0.59754955,4319.0,4318.7,0.233]
[1757124305833,1.23880782,4319.0,4318.4,0.233]
[1757124307630,1.23880782,4319.0,4318.2,3.2078]
[1757124307826,0.23156,4318.9,4318.2,3.4408]
[1757124308631,0.4073,4318.3,4318.2,3.2078]
[1757124308827,0.4073,4318.3,4317.7,3.2078]
[1757124309028,0.4073,4318.3,4317.8,0.233]
[1757124311433,0.4073,4318.3,4317.7,3.2078]
[1757124311632,0.4073,4318.3,4317.8,0.233]
[1757124311823,0.4073,4318.3,4317.7,3.4408]
[1757124312029,0.4073,4318.3,4317.7,3.2078]
[1757124312336,0.4073,4318.3,4317.7,3.4408]
[1757124316232,3.2078,4319.1,4318.1,1.23880782]
[1757124316432,0.59751879,4319.0,4318.2,0.233]
[1757124316635,0.59751879,4318.9,4318.2,0.233]
[1757124316836,0.59751879,4318.8,4318.2,0.233]
[1757124317128,0.59751879,4318.7,4318.2,0.233]
[1757124317333,3.2078,4319.1,4318.2,0.233]
[1757124317526,0.59776509,4319.0,4318.1,1.23880782]
[1757124317732,0.59776509,4319.0,4317.7,3.2078]
[1757124317733,0.4073,4318.3,4317.7,3.2078]
[1757124317933,0.4073,4318.3,4317.8,0.233]
[1757124318127,0.4073,4318.3,4317.7,3.2078]
[1757124318427,0.4073,4318.3,4317.8,0.233]
[1757124318837,0.4073,4318.3,4317.7,3.4408]
[1757124319829,0.2052,4317.8,4317.7,3.4408]
[1757124320232,0.4189,4317.8,4317.7,3.4408]
[1757124320433,0.4189,4317.8,4317.7,0.233]
[1757124321044,0.4189,4317.8,4317.3,1.23880782]
[1757124321342,0.4189,4317.8,4317.4,0.46461]
[1757124321534,0.4189,4317.8,4317.2,3.2078]
[1757124321733,0.4189,4317.8,4317.3,0.233]
[1757124324440,0.4189,4317.3,4317.2,0.233]
[1757124326144,0.4189,4317.3,4317.0,31.952]
[1757124326347,0.4189,4317.3,4317.1,0.233]
[1757124327639,0.728,4317.3,4317.2,0.2086]
[1757124329037,0.728,4317.3,4317.2,0.656]
[1757124329245,0.3091,4317.3,4317.2,0.656]
[1757124329845,0.3091,4317.4,4317.3,0.656]
[1757124330441,0.1202,4318.0,4317.4,0.2394]
[1757124330745,0.8482,4318.0,4317.9,0.2086]
[1757124330946,1.44552202,4318.0,4317.9,0.2086]
[1757124333646,0.3091,4317.9,4317.2,0.2394]
[1757124333851,1.32532202,4317.8,4317.7,0.2086]
[1757124336351,0.2052,4317.2,4317.1,0.6496]
[1757124336552,0.728,4317.2,4317.1,0.6496]
[1757124337959,0.728,4317.2,4317.1,0.4166]
[1757124338160,0.728,4317.2,4317.1,0.6496]
[1757124338361,0.728,4317.2,4317.1,0.889]
[1757124340555,0.728,4317.2,4317.1,0.6496]
[1757124342760,0.3091,4317.2,4317.1,0.889]
[1757124342963,0.5143,4317.2,4317.1,0.889]
[1757124344359,0.728,4317.2,4317.1,0.233]
[1757124344566,0.1202,4317.0,4316.7,3.4472]
[1757124344765,0.728,4316.9,4316.8,0.4416]
[1757124346662,0.728,4316.9,4316.8,0.233]
[1757124347264,0.728,4316.9,4316.8,0.4416]
[1757124347465,0.3091,4316.9,4316.8,0.889]
[1757124348165,0.5143,4316.9,4316.8,0.889]
[1757124349561,0.3091,4316.9,4316.8,0.889]
[1757124350867,0.2974,4317.4,4317.3,0.6564]
[1757124351067,1.09725706,4317.4,4317.3,0.6564]
[1757124351264,1.29075706,4317.4,4317.3,0.417]
[1757124351468,0.2974,4317.9,4317.3,0.417]
[1757124351664,0.2974,4317.7,4317.3,0.2394]
[1757124351869,1.09747713,4317.6,4317.5,0.6564]
[1757124352069,1.09747713,4317.6,4317.5,0.8894]
[1757124355273,1.29097713,4317.6,4317.5,0.65]
[1757124357774,1.29097713,4317.6,4317.5,0.4366]
[1757124357974,1.29097713,4317.6,4317.5,0.233]
[1757124358569,0.2008,4317.3,4317.2,3.6248]
[1757124358774,0.4982,4317.3,4317.2,4.0972]
[1757124360372,0.6917,4317.3,4317.2,3.2078]
[1757124360578,0.6917,4317.3,4317.2,3.4408]
[1757124360770,1.29032957,4317.3,4317.2,3.4408]
[1757124363476,1.29032957,4317.3,4317.2,3.2078]
[1757124363780,1.29032957,4317.3,4317.2,3.4408]
[1757124364378,1.29032957,4317.3,4317.2,3.2078]
[1757124364578,1.29032957,4317.3,4317.2,3.4408]
[1757124365475,1.29032957,4317.3,4317.2,3.2078]
[1757124366181,1.29032957,4317.3,4317.2,3.4408]
[1757124368286,1.29032957,4317.3,4317.2,3.6444]
[1757124369481,1.29032957,4317.3,4317.2,4.0972]
[1757124369987,1.29032957,4317.3,4317.2,4.38612725]
[1757124370979,1.36822957,4317.3,4317.2,4.38612725]
[1757124371189,1.36822957,4317.3,4317.2,4.14672725]
[1757124374189,1.36822957,4317.3,4317.2,4.14669296]
[1757124375489,1.36822957,4317.3,4317.2,3.91369296]
[1757124375687,0.3943,4316.8,4316.7,3.6248]
[1757124375883,0.6917,4316.8,4316.7,3.8568]
[1757124376685,0.6917,4316.8,4316.7,3.8578]
[1757124377190,0.6917,4316.8,4316.7,3.6248]
[1757124377393,0.6917,4316.8,4316.7,3.8578]
[1757124378189,0.6917,4316.8,4316.7,3.4114]
[1757124378384,0.6917,4316.8,4316.7,0.4366]
[1757124378584,1.27653592,4316.8,4316.7,0.4366]
[1757124378883,1.27653592,4316.8,4316.7,0.233]
[1757124379387,0.6917,4316.8,4316.7,0.233]
[1757124379684,1.27643953,4316.8,4316.7,0.233]
[1757124380085,0.6917,4316.8,4316.7,0.233]
[1757124380286,1.2763413,4316.8,4316.7,0.233]
[1757124380885,0.1183,4316.5,4316.4,0.4354]
[1757124381085,0.5104,4316.5,4316.4,0.4354]
[1757124381286,0.8208,4316.5,4316.4,0.4354]
[1757124385304,0.8208,4316.5,4315.8,1.04964792]
[1757124385504,1.04964792,4316.2,4315.7,3.2078]
[1757124385804,3.2078,4316.6,4315.8,0.233]
[1757124386101,1.04964792,4316.3,4315.8,0.233]
[1757124386307,1.04964792,4316.3,4315.7,3.2078]
[1757124386502,1.04964792,4316.3,4315.8,0.233]
[1757124387202,0.58425734,4316.2,4315.9,0.233]
[1757124387397,1.04964792,4316.3,4315.9,0.233]
[1757124387603,0.58406541,4316.2,4315.9,0.233]
[1757124387804,1.04964792,4316.3,4315.9,0.233]
[1757124388003,0.58411805,4316.2,4315.9,0.233]
[1757124388303,1.04964792,4316.3,4315.9,0.233]
[1757124388495,0.58403115,4316.2,4315.9,0.233]
[1757124388696,1.04964792,4316.3,4315.9,0.233]
[1757124388993,0.58403132,4316.2,4315.9,0.233]
[1757124389194,1.04964792,4316.3,4315.9,0.233]
[1757124389396,0.58397944,4316.2,4315.9,0.233]
[1757124389594,1.04964792,4316.3,4315.9,0.233]
[1757124389801,0.58397945,4316.2,4315.9,0.233]
[1757124390001,1.04964792,4316.3,4315.9,0.233]
[1757124390199,0.078,4316.2,4315.9,0.233]
[1757124390501,0.3167,4316.0,4315.9,0.643]
[1757124390801,0.8208,4316.0,4315.9,0.643]
[1757124391003,0.8208,4316.0,4315.9,0.41]
[1757124395207,0.8208,4316.0,4315.5,0.233]
[1757124395704,0.8208,4316.0,4315.9,0.2024]
[1757124395905,0.3167,4315.5,4315.4,1.45964792]
[1757124396102,0.6271,4315.5,4315.4,1.69264792]
[1757124398200,0.8208,4315.5,4315.4,0.41]
[1757124398506,0.8208,4315.5,4315.4,0.643]
[1757124398895,0.3104,4315.5,4315.4,0.643]
[1757124401611,0.5088,4315.5,4315.4,0.643]
[1757124402302,0.6271,4315.5,4315.4,0.643]
[1757124402706,0.1183,4316.0,4315.4,0.643]
[1757124403005,0.5104,4316.0,4315.9,0.41]
[1757124403304,0.5104,4316.0,4315.9,0.2024]
[1757124403510,0.8208,4316.0,4315.9,0.2024]
[1757124405504,0.3921,4315.5,4315.4,0.4354]
[1757124405711,0.8208,4315.5,4315.4,0.4354]
[1757124412020,0.8208,4315.5,4315.1,3.2078]
[1757124412021,0.3125,4315.4,4315.1,3.2078]
[1757124412213,0.3125,4315.2,4315.1,3.2078]
[1757124412407,0.7037,4315.2,4315.1,3.4408]
[1757124412712,0.7037,4315.2,4315.1,3.2078]
[1757124413813,0.7037,4315.2,4315.1,3.49330739]
[1757124414317,0.7817,4315.2,4315.1,3.49330739]
[1757124418118,0.7817,4315.2,4315.1,3.70217274]
[1757124418613,0.7817,4315.2,4315.1,3.89607274]
[1757124419320,0.7817,4315.2,4315.1,4.13577274]
[1757124419913,0.7817,4315.2,4315.1,0.92797274]
[1757124420918,0.3905,4315.2,4315.1,0.92797274]
[1757124421120,0.078,4315.2,4315.1,0.92797274]
[1757124421319,0.3905,4315.2,4315.1,0.92797274]
[1757124422729,0.5855,4315.2,4315.1,0.92797274]
[1757124423929,0.3905,4315.2,4315.1,0.92797274]
[1757124424725,0.3125,4315.9,4315.8,0.4028]
[1757124425022,0.3125,4315.9,4315.8,1.08297274]
[1757124425427,0.5075,4315.9,4315.8,1.08297274]
[1757124425622,0.3125,4315.9,4315.8,1.08297274]
[1757124426227,0.3125,4316.4,4315.8,0.92127274]
[1757124426432,1.09357641,4316.3,4316.2,0.4028]
[1757124426729,1.28977641,4316.3,4316.2,0.68827274]
[1757124427728,1.28977641,4316.3,4316.2,0.49437274]
[1757124428131,1.28977641,4316.3,4316.2,0.28547274]
[1757124432340,1.28977641,4316.3,4316.2,0.49437274]
[1757124435042,1.28977641,4316.3,4316.2,0.28547274]
[1757124435341,1.28977641,4316.3,4316.2,0.49437274]
[1757124435542,1.28977641,4316.3,4316.2,0.68827274]
[1757124435742,1.28977641,4316.3,4316.2,0.28547274]
[1757124437245,1.28977641,4316.3,4316.2,0.49437274]
[1757124437646,1.28977641,4316.3,4316.2,0.84997274]
[1757124437843,0.7037,4316.3,4316.2,0.49437274]
[1757124439044,0.7037,4316.3,4316.2,0.28547274]
[1757124440541,0.7037,4316.3,4316.2,0.49447274]
[1757124440740,0.7037,4316.3,4316.2,0.86527274]
[1757124441239,0.7037,4316.3,4316.2,0.70367274]
[1757124442147,0.302,4316.5,4316.4,0.5798]
[1757124442341,0.302,4316.5,4316.4,0.86527274]
[1757124442743,0.4203,4317.0,4316.9,0.4182]
[1757124442942,0.4203,4317.0,4316.9,0.70367274]
[1757124442943,0.6219,4317.0,4316.9,0.70367274]
[1757124443142,0.8303,4317.0,4316.9,0.70367274]
[1757124443337,0.8303,4317.0,4316.9,0.86527274]
[1757124443542,0.6219,4317.0,4316.9,0.86527274]
[1757124447350,0.6219,4317.0,4316.9,0.86583134]
[1757124447652,0.6219,4317.0,4316.9,0.70423134]
[1757124448452,0.6219,4317.0,4316.9,0.86603134]
[1757124448854,0.6219,4317.0,4316.9,0.70423134]
[1757124449955,0.4203,4317.0,4316.9,0.86603134]
[1757124451254,0.6219,4317.0,4316.9,0.70423134]
[1757124451454,0.8303,4317.0,4316.9,0.70423134]
[1757124453156,0.8303,4317.0,4316.9,0.88671778]
[1757124453964,0.8303,4317.0,4316.9,1.04851778]
[1757124454758,3.5098,4317.7,4317.0,0.0797]
[1757124454951,0.5036,4317.7,4317.6,1.82088641]
[1757124455150,0.5036,4317.7,4317.6,2.33991775]
[1757124456357,0.302,4317.9,4317.8,0.4182]
[1757124456563,0.302,4317.9,4317.8,4.30683134]
[1757124456860,0.5036,4317.9,4317.8,4.30683134]
[1757124457045,0.5036,4317.9,4317.8,4.14503134]
[1757124457659,0.712,4317.9,4317.8,4.14503134]
[1757124460058,0.712,4317.9,4317.8,4.30683134]
[1757124462461,0.712,4317.9,4317.8,4.14503134]
[1757124463254,0.712,4317.9,4317.8,0.28603134]
[1757124463459,0.712,4317.9,4317.7,0.233]
[1757124466056,0.41,4317.9,4317.5,5.371]
[1757124466257,0.302,4317.8,4317.6,0.233]
[1757124466457,0.712,4317.7,4317.6,0.233]
[1757124468457,0.712,4317.7,4317.6,0.442]
[1757124468660,0.302,4317.7,4317.6,0.7993]
[1757124469162,0.5043,4317.7,4317.6,1.08685767]
[1757124469663,0.5043,4317.7,4317.6,0.7993]
[1757124470165,0.5043,4317.7,4317.6,1.08695492]
[1757124470359,0.5043,4317.7,4317.6,0.92545492]
[1757124470560,0.7114,4317.7,4317.6,0.92545492]
[1757124472166,0.7114,4317.7,4317.6,0.28765492]
[1757124472362,0.7114,4317.7,4317.6,0.52065492]
[1757124472958,0.7114,4317.7,4317.6,0.28765492]
[1757124473164,1.2956402,4317.7,4317.6,0.233]
[1757124474063,0.9936402,4317.7,4317.3,3.2078]
[1757124474257,0.7281,4317.4,4317.3,3.2078]
[1757124474461,0.7281,4317.4,4317.3,3.72871574]
[1757124475969,0.7281,4317.4,4317.3,3.49571574]
[1757124476166,0.7281,4317.4,4317.3,3.4408]
[1757124476468,0.7281,4317.4,4317.3,3.72876498]
[1757124476862,0.7281,4317.4,4317.3,4.11876498]
[1757124477064,0.3187,4317.4,4317.3,4.28026498]
[1757124477774,0.521,4317.4,4317.3,4.28026498]
[1757124480271,0.3187,4317.4,4317.3,5.52115139]
[1757124480475,0.7281,4317.9,4317.8,0.1942]
[1757124480676,1.31269927,4317.9,4317.8,0.48216498]
[1757124480976,1.31269927,4317.9,4317.8,0.83946498]
[1757124481479,1.31269927,4317.9,4317.8,1.88864703]
[1757124482277,0.90329927,4317.9,4317.8,1.88864703]
[1757124482478,3.6537,4318.5,4318.4,0.5515]
[1757124482781,4.6479557,4318.5,4318.4,1.96014703]
[1757124483676,4.6479557,4318.5,4318.4,1.96075288]
[1757124485673,4.6479557,4318.5,4318.4,0.91157083]
[1757124485977,4.6479557,4318.5,4318.4,0.71577083]
[1757124486674,8.8795157,4318.5,4318.4,0.04067083]
[1757124486879,0.1277,4316.5,4316.1,2.07730521]
[1757124487086,0.1277,4316.5,4315.5,0.827]
[1757124487087,0.521,4315.6,4315.5,0.827]
[1757124487276,0.75507799,4315.6,4315.5,0.827]
[1757124487478,0.75507799,4315.6,4315.5,1.063]
[1757124487975,0.75507799,4315.6,4315.5,0.7105]
[1757124487976,0.96217799,4315.6,4315.5,0.7105]
[1757124488183,0.4094,4315.2,4315.1,0.7507]
[1757124488376,0.9294817,4315.2,4315.1,0.9465]
[1757124491972,0.9294817,4315.2,4315.1,0.7105]
[1757124493177,1.97866375,4315.2,4314.6,0.3205]
[1757124493381,0.7281,4314.7,4314.6,0.7105]
[1757124493578,0.9294817,4314.7,4314.6,0.7105]
[1757124494183,0.98632631,4314.7,4314.6,0.7105]
[1757124501292,0.98632631,4314.7,4314.6,0.1942]
[1757124501491,0.98632631,4314.7,4314.3,0.3085]
[1757124501691,0.98642631,4314.6,4314.5,0.5077]
[1757124502289,2.03560836,4314.6,4314.5,0.5077]
[1757124502487,0.7282,4314.3,4314.2,0.5077]
[1757124502681,0.98642631,4314.3,4314.2,0.5077]
[1757124504290,0.98642631,4314.3,4314.2,0.7117]
[1757124505690,2.03560836,4314.3,4314.2,0.1992]
[1757124505892,0.78232631,4314.3,4314.2,0.7117]
[1757124508198,0.5241,4314.3,4314.2,0.7117]
[1757124508591,0.3194,4314.9,4314.3,0.3085]
[1757124508789,0.7282,4314.9,4314.8,0.5077]
[1757124508990,0.96177234,4314.9,4314.8,0.5077]
[1757124509191,0.96177234,4314.9,4314.8,0.7117]
[1757124510192,0.7282,4314.9,4314.8,0.7117]
[1757124511091,0.93940892,4314.9,4314.8,0.7117]
[1757124511896,0.7282,4314.9,4314.8,0.7117]
[1757124512295,0.93950383,4314.9,4314.8,0.7117]
[1757124512497,1.05530383,4314.9,4314.8,0.7117]
[1757124515397,1.66119267,4314.9,4314.8,0.7117]
[1757124516304,1.6623853,4314.9,4314.8,0.7117]
[1757124519202,1.65142418,4314.9,4314.8,0.7117]
[1757124519403,1.44988884,4314.9,4314.8,0.7117]
[1757124520702,0.3194,4314.8,4314.2,0.3085]
[1757124521001,0.7282,4314.8,4314.7,0.5077]
[1757124521198,1.33607439,4314.8,4314.7,0.7117]
[1757124523007,0.60787439,4314.8,4314.7,0.7117]
[1757124525115,1.13197439,4314.8,4314.7,0.7117]
[1757124526605,1.45187439,4314.8,4314.7,0.7117]
[1757124529310,1.45187439,4314.8,4314.7,0.9467]
[1757124531513,1.45187439,4314.8,4314.7,0.235]
[1757124532117,1.45187439,4314.8,4314.7,0.4486]
[1757124532316,1.45187439,4314.8,4314.7,0.7576]
[1757124538824,1.45187439,4314.8,4314.7,0.9699]
[1757124539720,0.72367439,4314.8,4314.7,0.9699]
[1757124540126,0.1158,4314.8,4314.7,0.9699]
[1757124541419,0.1158,4314.8,4314.7,1.20166]
[1757124541818,0.1158,4314.8,4314.7,0.9699]
[1757124542521,0.1158,4314.8,4314.7,4.9699]
[1757124543515,0.1158,4314.8,4314.7,6.21069639]
[1757124546522,0.8189,4314.8,4314.7,2.21069639]
[1757124547329,0.8189,4314.8,4314.7,0.5226]
[1757124547528,0.8189,4314.8,4314.7,0.7576]
[1757124547830,0.8189,4314.8,4314.7,0.4486]
[1757124549430,0.8189,4314.8,4314.7,0.2136]
[1757124549631,0.8189,4314.8,4314.7,0.4486]
[1757124550331,0.8189,4314.8,4314.7,1.25929023]
[1757124554638,0.1158,4314.8,4314.7,1.25929023]
[1757124558743,0.6314,4314.8,4314.7,1.25929023]
[1757124560847,0.3126,4314.8,4314.7,1.25929023]
[1757124561543,0.6314,4314.8,4314.7,1.25929023]
[1757124563942,0.8275,4314.8,4314.7,1.25929023]
[1757124565947,0.6314,4314.8,4314.7,1.25929023]
[1757124566143,0.3126,4314.8,4314.7,1.25929023]
[1757124566343,0.3188,4315.4,4314.8,0.2968]
[1757124566543,0.7179,4315.4,4315.3,0.7063]
[1757124566748,1.3258562,4315.4,4315.3,1.22969023]
[1757124574652,1.3258562,4315.4,4315.3,2.47048662]
[1757124574852,0.1158,4315.8,4315.7,0.7063]
[1757124575045,0.5218,4315.8,4315.7,1.22969023]
[1757124575251,0.3188,4316.3,4315.8,0.2968]
[1757124575452,1.32557127,4316.2,4316.1,0.7063]
[1757124575751,1.32557127,4316.2,4316.1,0.99569023]
[1757124581160,1.32557127,4316.2,4316.1,0.28939023]
[1757124582671,2.56636766,4316.2,4316.1,0.28939023]
[1757124584066,6.56636766,4316.2,4316.1,0.28939023]
[1757124590771,6.56636766,4316.2,4315.3,0.3109]
[1757124590976,0.116,4315.5,4315.4,0.29188115]
[1757124591176,0.5148,4315.5,4315.4,0.29188115]
[1757124591576,0.8183,4315.5,4315.4,0.29188115]
[1757124593269,0.8183,4315.5,4315.4,0.80108115]
[1757124595180,0.7023,4315.5,4315.4,1.00678115]
[1757124595377,1.30943171,4315.5,4315.4,1.00678115]
[1757124596273,0.60713171,4315.5,4315.4,1.00678115]
[1757124596679,0.80303171,4315.5,4315.4,1.00678115]
[1757124596979,1.10653171,4315.5,4315.4,1.00678115]
[1757124597481,0.80303171,4315.5,4315.4,1.00678115]
[1757124597780,1.10653171,4315.5,4315.4,1.00678115]
[1757124598781,0.4994,4315.5,4315.4,1.00678115]
[1757124599076,1.30949293,4315.5,4315.4,1.00678115]
[1757124599275,1.30954412,4315.5,4315.4,1.00678115]
[1757124601173,1.42554412,4315.5,4315.4,1.00678115]
[1757124608982,1.42554412,4315.5,4315.4,0.49018115]
[1757124609188,0.1959,4314.6,4314.5,1.071]
[1757124609390,0.7023,4314.6,4314.5,1.071]
[1757124611085,0.1959,4314.6,4314.5,1.071]
[1757124612885,0.3035,4315.2,4315.1,0.7149]
[1757124613183,1.10649943,4315.2,4315.1,0.7149]
[1757124613588,1.30939943,4315.2,4315.1,0.7149]
[1757124617091,0.8183,4315.0,4314.6,1.05057629]
[1757124617297,0.7023,4314.8,4314.7,0.5092]
[1757124617497,0.7023,4314.8,4314.7,0.7149]
[1757124620198,0.7023,4314.8,4314.7,0.5092]
[1757124620504,0.7154,4314.7,4314.6,0.5195]
[1757124621096,0.7154,4314.7,4314.6,0.7176]
[1757124630010,0.7154,4314.7,4314.1,0.3132]
[1757124630210,0.7154,4314.7,4314.6,0.5195]
[1757124630415,0.7154,4314.7,4314.6,0.7176]
[1757124631113,1.32333629,4314.7,4314.6,0.7176]
[1757124632821,1.43913629,4314.7,4314.6,0.7176]
[1757124638728,1.43913629,4314.7,4314.2,0.233]
[1757124639029,1.32333629,4314.6,4314.5,0.5195]
[1757124639228,1.32333629,4314.6,4314.5,0.7176]
[1757124641828,1.32333629,4314.6,4314.5,0.5195]
[1757124642725,0.2994,4314.4,4314.3,0.3132]
[1757124642925,0.7154,4314.4,4314.3,0.5195]
[1757124644325,0.7154,4314.4,4314.3,0.7176]
[1757124644722,0.8312,4314.4,4314.3,0.7176]
[1757124647230,1.43986559,4314.4,4314.3,0.7176]
[1757124647531,1.43986559,4314.4,4314.3,0.5195]
[1757124648030,1.43986559,4314.4,4314.3,0.80634625]
[1757124652331,0.8312,4314.4,4314.3,0.80634625]
[1757124652535,1.43961977,4314.4,4314.3,0.80634625]
[1757124656327,1.43961977,4314.4,4314.3,1.00084625]
[1757124661040,4.64741977,4314.4,4314.3,1.00084625]
[1757124662240,4.64741977,4314.4,4314.3,1.00071982]
[1757124663241,4.64773698,4314.4,4314.3,1.00071982]
[1757124665639,4.64773698,4314.4,4314.3,0.28671982]
[1757124665838,4.64773698,4314.4,4314.3,0.48581982]
[1757124666039,4.64773698,4314.4,4314.3,0.80621982]
[1757124666544,4.64773698,4314.4,4314.3,0.28671982]
[1757124672944,4.039,4314.4,4314.3,0.28671982]
[1757124673152,4.64762904,4314.4,4314.3,0.28671982]
[1757124690264,8.87940904,4314.4,4313.3,0.295]
[1757124690563,0.7125,4313.4,4313.3,0.5063]
[1757124691872,0.8283,4313.4,4313.3,0.5063]
[1757124692874,0.3141,4313.4,4313.3,0.5009]
[1757124693172,0.8283,4313.4,4313.3,0.7122]
[1757124693569,0.3141,4313.4,4313.3,0.7122]
[1757124693769,0.1158,4313.4,4313.3,0.7122]
[1757124696075,0.3141,4313.4,4313.3,0.7122]
[1757124697477,0.8283,4313.4,4313.3,0.7122]
[1757124697777,0.8283,4313.4,4313.3,0.5063]
[1757124698277,0.8283,4313.4,4313.0,0.1272]
[1757124698571,0.3028,4313.0,4312.8,0.38751758]
[1757124698778,0.3028,4313.0,4312.9,0.5063]
[1757124698977,1.32064028,4313.0,4312.9,0.5063]
[1757124699568,1.32064028,4313.0,4312.9,0.7122]
[1757124701274,1.32064028,4313.0,4312.9,0.5063]
[1757124701975,1.43664028,4313.0,4312.8,0.17621758]
[1757124702180,1.32064028,4312.9,4312.8,0.17621758]
[1757124702981,1.55364028,4312.9,4312.8,0.17621758]
[1757124703176,7.02696186,4312.9,4312.8,0.17621758]
[1757124703574,5.55364028,4312.9,4312.8,0.47121758]
[1757124703973,5.55364028,4312.9,4312.8,0.17621758]
[1757124705085,1.01784028,4312.9,4312.8,0.88841758]
[1757124705287,1.25084028,4312.9,4312.8,0.88841758]
[1757124705677,1.55364028,4312.9,4312.8,0.88841758]
[1757124706177,2.79509185,4312.9,4312.8,0.47121758]
[1757124707381,0.4097,4311.7,4311.6,0.5063]
[1757124707686,0.7125,4311.7,4311.6,0.7122]
[1757124708183,0.4097,4311.7,4311.6,0.7122]
[1757124710284,0.7197,4311.7,4311.6,0.7122]
[1757124710481,0.7197,4311.7,4311.6,0.5063]
[1757124710681,0.7197,4311.7,4311.1,0.3099]
[1757124710879,3.9271,4311.2,4311.1,0.5107]
[1757124712085,3.9271,4311.2,4311.1,0.3099]
[1757124712285,0.7193,4311.1,4311.0,0.2008]
[1757124712480,0.7193,4311.1,4311.0,0.5107]
[1757124714181,0.7193,4311.1,4310.6,0.3099]
[1757124714392,3.9271,4310.7,4310.6,0.3099]
[1757124714887,3.9271,4310.7,4310.6,0.5107]
[1757124715478,3.9271,4310.7,4310.6,0.7187]
[1757124717985,4.043,4310.7,4310.6,0.7187]
[1757124719677,3.733,4310.7,4310.6,0.7187]
[1757124720488,4.043,4310.7,4310.6,0.5107]
[1757124721081,0.7193,4310.3,4310.2,0.7187]
[1757124721387,0.7193,4310.3,4310.2,0.3099]
[1757124721581,0.7193,4310.3,4310.2,0.5107]
[1757124722188,0.7193,4310.3,4310.2,0.3099]
[1757124722387,0.7193,4310.3,4309.8,0.3099]
[1757124722587,0.4093,4310.3,4310.2,0.5107]
[1757124723293,0.7193,4310.3,4310.2,0.5107]
[1757124723799,0.7193,4310.3,4310.2,0.3099]
[1757124723990,0.7193,4310.3,4310.0,0.1169]
[1757124724191,0.7193,4310.3,4310.1,0.3099]
[1757124724391,0.7193,4310.3,4310.0,0.1169]
[1757124724591,0.31,4310.2,4310.0,0.1169]
[1757124724791,0.7193,4310.2,4310.1,0.5107]
[1757124725289,0.31,4310.1,4309.7,0.3099]
[1757124725496,0.7193,4309.8,4309.7,0.7187]
[1757124726594,0.4093,4309.8,4309.7,0.7187]
[1757124727100,0.9533,4310.5,4310.4,0.7187]
[1757124728905,0.7193,4310.5,4310.4,0.7187]
[1757124729197,0.7806,4310.5,4310.1,0.3099]
[1757124729394,4.98004572,4310.2,4310.1,0.5107]
[1757124730398,5.09594572,4310.2,4310.1,0.5107]
[1757124732001,5.09594572,4310.2,4310.1,0.3099]
[1757124732684,5.09594572,4310.2,4309.7,0.3099]
[1757124732886,0.7193,4309.6,4309.0,0.1169]
[1757124733091,3.6171,4309.3,4309.2,0.2008]
[1757124733291,4.98004572,4309.3,4309.2,0.5107]
[1757124733495,0.31,4309.2,4308.7,35.2238]